bitfinex/quotes_ETHUSD_20220309
["timestamp","ask_amount","ask_price","bid_price","bid_amount"]
[1646805869434,1.13867519,2714.6,2713.5,0.1842]
[1646805869638,0.98854033,2714.6,2713.5,0.1842]
[1646805869834,0.98854033,2714.6,2713.4,1.83325146]
[1646805870036,0.98854033,2714.6,2713.6,1.15848713]
[1646805870475,1.16805454,2714.2,2713.6,1.15848713]
[1646805870677,0.445,2714.4,2714.3,0.44205295]
[1646805872476,1.61132339,2714.4,2714.3,0.44205295]
[1646805872676,1.51919675,2714.4,2714.3,0.44205295]
[1646805873681,0.35287336,2714.4,2714.3,0.44205295]
[1646805878270,0.35152078,2714.4,2714.3,0.44205295]
[1646805889230,0.35152078,2714.4,2714.3,0.39205295]
[1646805890628,0.80216317,2714.4,2714.3,0.39205295]
[1646805891450,0.50216317,2714.4,2714.3,0.39205295]
[1646805892875,0.57764383,2714.4,2714.3,0.39205295]
[1646805893073,0.50216317,2714.4,2714.3,0.39205295]
[1646805894878,11.73216317,2714.4,2714.3,0.39205295]
[1646805896723,12.03216317,2714.4,2714.3,0.39205295]
[1646805896924,12.10764372,2714.4,2714.3,0.39205295]
[1646805899530,0.57764372,2714.4,2714.3,0.39205295]
[1646805902077,0.07548055,2714.4,2714.3,0.39205295]
[1646805902280,0.54354033,2714.6,2714.3,3.89205295]
[1646805902477,0.54354033,2714.6,2714.3,0.39205295]
[1646805902478,1.5,2714.4,2714.3,0.39205295]
[1646805902677,1.5,2714.4,2714.3,1.87712474]
[1646805902875,1.5,2714.4,2714.3,0.39205295]
[1646805903276,1.5,2714.4,2714.3,1.87713026]
[1646805904328,1.57547013,2714.4,2714.3,1.87713026]
[1646805905327,1.57547013,2714.4,2714.3,5.74473026]
[1646805905328,1.5,2714.4,2714.3,5.74473026]
[1646805906327,1.5,2714.4,2714.3,2.24473026]
[1646805906527,1.57546548,2714.4,2714.3,2.24473026]
[1646805906729,1.57546548,2714.4,2714.3,1.87713026]
[1646805907128,1.5,2714.4,2714.3,1.87713026]
[1646805911279,1.945,2714.4,2714.3,1.87713026]
[1646805911544,13.175,2714.4,2714.3,1.87713026]
[1646805911733,1.945,2714.4,2714.3,1.87713026]
[1646805911934,2.09519425,2714.4,2714.3,1.87713026]
[1646805912934,2.09519425,2714.4,2714.3,1.87630359]
[1646805915973,1.5,2714.4,2714.3,1.87630359]
[1646805916974,1.5,2714.4,2714.3,1.33711359]
[1646805917175,1.5,2714.4,2714.0,1.18108802]
[1646805918275,1.5,2714.4,2714.1,3.5]
[1646805918678,2.24359469,2715.0,2714.4,0.10992564]
[1646805918679,0.67767926,2714.8,2714.4,0.10992564]
[1646805919326,0.67767926,2714.8,2714.5,1.20837097]
[1646805919528,0.67767926,2714.8,2714.5,1.15837097]
[1646805920128,0.55709469,2715.0,2714.5,1.15837097]
[1646805920129,0.67767926,2714.9,2714.5,1.15837097]
[1646805920532,0.67767926,2714.9,2714.4,0.10992564]
[1646805921128,0.67767926,2714.8,2714.4,0.10992564]
[1646805921327,0.67767926,2714.9,2714.4,0.10992564]
[1646805921526,0.67767926,2714.8,2714.4,0.10992564]
[1646805922773,0.67767926,2714.9,2714.4,0.10992564]
[1646805923375,0.67767926,2714.8,2714.4,0.10992564]
[1646805923977,0.67767926,2714.8,2714.3,0.87628521]
[1646805924179,0.67767926,2714.9,2714.3,0.87628521]
[1646805924380,0.67767926,2714.8,2714.3,0.87628521]
[1646805926625,0.67767926,2714.9,2714.0,1.1697]
[1646805926827,0.67767926,2714.8,2714.0,1.1697]
[1646805927628,1.12267926,2714.8,2714.0,1.1697]
[1646805927828,1.78074211,2714.7,2714.1,1.21978102]
[1646805929028,0.67767926,2714.7,2714.1,1.21978102]
[1646805929230,1.12267926,2714.8,2714.1,1.21978102]
[1646805929828,0.67767926,2714.7,2714.1,1.21978102]
[1646805930481,1.12267926,2714.8,2714.1,1.21978102]
[1646805930679,0.67767926,2714.7,2714.1,1.21978102]
[1646805931086,0.67767926,2714.8,2714.1,1.21978102]
[1646805931684,0.67767926,2714.8,2714.0,0.38948102]
[1646805931884,0.67767926,2714.8,2713.9,4.16365146]
[1646805932485,0.67767926,2714.8,2714.2,0.9698682]
[1646805936836,0.67767926,2714.8,2714.3,1.50170675]
[1646805937035,0.7531443,2714.8,2714.3,1.50170675]
[1646805937434,0.07546504,2714.7,2714.3,1.50170675]
[1646805937635,0.07546504,2714.6,2714.3,1.50170675]
[1646805937877,0.67767926,2714.8,2714.3,1.50170675]
[1646805937878,0.07546504,2714.5,2714.3,1.50170675]
[1646805938078,0.07546504,2714.4,2714.3,1.50170675]
[1646805938481,0.07546504,2714.7,2714.3,1.50170675]
[1646805938678,0.07546504,2714.6,2714.3,1.50170675]
[1646805938882,0.07546504,2714.5,2714.3,1.50170675]
[1646805939082,0.07546504,2714.4,2714.3,1.50170675]
[1646805939283,0.75314201,2714.9,2714.3,1.50170675]
[1646805939583,0.75314167,2714.8,2714.3,1.50170675]
[1646805939785,0.07546241,2714.7,2714.3,1.50170675]
[1646805939982,0.07546241,2714.6,2714.3,1.50170675]
[1646805940184,0.07546241,2714.5,2714.3,1.50170675]
[1646805940384,0.07546241,2714.4,2714.3,1.50170675]
[1646805940584,0.67767926,2714.8,2714.3,1.50170675]
[1646805941187,0.07546532,2714.7,2714.3,1.50170675]
[1646805941392,0.07546532,2714.6,2714.3,1.50170675]
[1646805941631,0.75314458,2714.9,2714.3,1.50170675]
[1646805942430,0.67767926,2714.8,2714.3,1.50170675]
[1646805943431,0.445,2714.7,2713.9,0.66365146]
[1646805943640,0.445,2714.7,2713.4,0.66365146]
[1646805943641,0.06636514,2713.8,2713.4,0.66365146]
[1646805943833,0.06636514,2713.8,2713.2,0.66365146]
[1646805943834,0.445,2713.7,2713.2,0.66365146]
[1646805944034,0.445,2713.7,2713.0,0.66365146]
[1646805944035,12.7211,2713.7,2713.0,0.66365146]
[1646805944233,3.5,2713.6,2712.8,0.66365146]
[1646805944434,1.64246217,2713.5,2712.8,0.66365146]
[1646805944637,1.64246217,2713.5,2712.7,4.01397872]
[1646805944638,3.5,2713.4,2712.7,4.01397872]
[1646805944835,0.445,2713.3,2712.7,4.01397872]
[1646805945035,0.445,2713.3,2712.7,3.35032726]
[1646805945282,0.445,2713.3,2712.7,0.99262726]
[1646805947383,0.445,2713.3,2712.6,0.66365146]
[1646805947583,0.445,2713.3,2712.8,0.00655702]
[1646805948585,0.445,2713.3,2712.7,0.90584735]
[1646805948883,0.445,2713.3,2712.8,0.00655703]
[1646805949733,3.5,2713.2,2712.7,0.90584735]
[1646805949935,1.84396,2712.9,2712.7,0.90584735]
[1646805950135,1.84396,2712.9,2712.8,0.00655703]
[1646805950937,1.84396,2712.9,2712.1,0.66365146]
[1646805951134,1.84396,2712.9,2712.2,0.94166311]
[1646805951135,5.78896,2712.9,2712.2,0.94166311]
[1646805951334,2.28896,2712.9,2712.2,0.94166311]
[1646805951936,1.36698,2712.9,2712.2,0.94166311]
[1646805952135,4.6064318,2713.7,2712.2,1.30926311]
[1646805952136,0.92189,2713.2,2712.2,1.30926311]
[1646805952536,0.92189,2713.2,2712.4,0.00635592]
[1646805953380,0.92189,2713.2,2712.2,0.94166311]
[1646805953579,0.92189,2713.2,2712.7,0.0063554]
[1646805953981,4.42189,2713.2,2712.7,0.0063554]
[1646805954186,4.29454,2713.2,2712.7,0.0063554]
[1646805954585,4.29454,2713.2,2712.2,2.78525791]
[1646805954885,4.26189,2713.2,2712.8,0.00635516]
[1646805955084,0.76189,2713.2,2712.8,0.00635516]
[1646805955486,4.26189,2713.2,2712.8,0.00635516]
[1646805955887,4.26189,2713.2,2712.2,2.78282791]
[1646805956086,4.26189,2713.2,2712.8,0.00614891]
[1646805956730,0.76189,2713.2,2712.8,0.00614891]
[1646805956931,4.26189,2713.2,2712.2,2.78282791]
[1646805957429,4.26189,2713.2,2712.8,0.00614891]
[1646805958233,4.26189,2713.2,2712.2,2.78282791]
[1646805958431,4.26189,2713.2,2712.8,0.00614891]
[1646805958631,3.5,2713.2,2712.8,0.00614891]
[1646805958833,0.92187,2713.3,2712.8,0.00614891]
[1646805959439,0.92187,2713.3,2712.5,0.9217949]
[1646805959637,0.92187,2713.3,2712.8,0.00612704]
[1646805959942,4.6290656,2713.2,2712.8,0.00612704]
[1646805960284,1.84384,2713.2,2712.8,0.00612704]
[1646805960485,1.84384,2713.2,2712.4,0.87032145]
[1646805961084,1.84384,2713.2,2712.8,0.00612703]
[1646805961885,1.84384,2713.2,2712.4,0.87032145]
[1646805962089,5.64384,2713.2,2712.8,0.00612703]
[1646805962285,1.84384,2713.2,2712.8,0.00612703]
[1646805963086,1.84384,2713.2,2712.5,0.9217867]
[1646805963286,1.84384,2713.2,2712.8,0.0061285]
[1646805963887,2.71691065,2713.2,2712.8,0.0061285]
[1646805964131,3.01691065,2713.2,2712.8,0.0061285]
[1646805964332,3.01691065,2713.2,2712.4,0.87032145]
[1646805964531,3.01691065,2713.2,2712.8,0.0061285]
[1646805964532,3.5,2713.1,2712.8,0.0061285]
[1646805964737,3.01691065,2713.2,2712.8,0.0061285]
[1646805965332,3.01691065,2713.2,2712.4,0.87032145]
[1646805965532,2.14384,2713.2,2712.5,1.47609483]
[1646805965732,1.84384,2713.2,2712.8,0.0061285]
[1646805965933,0.23310705,2713.3,2712.9,1.47609483]
[1646805966136,3.68761,2713.7,2713.0,3.5]
[1646805966437,0.06636514,2713.8,2713.1,1.81346247]
[1646805966632,0.06636514,2713.8,2713.5,1.18081023]
[1646805966633,0.98789514,2713.8,2713.5,1.18081023]
[1646805966936,5.04764134,2714.3,2713.7,6.0]
[1646805966937,2.913115,2714.3,2713.7,6.0]
[1646805967133,2.913115,2714.3,2713.8,3.5]
[1646805967134,0.147715,2714.3,2713.8,3.5]
[1646805967534,0.147715,2714.3,2713.7,6.0]
[1646805967780,0.147715,2714.3,2714.0,1.14058856]
[1646805967984,0.92134,2714.4,2714.0,1.14058856]
[1646805968383,0.92134,2714.4,2713.9,0.9212354]
[1646805968384,0.07547899,2714.3,2713.9,0.9212354]
[1646805968588,0.07547899,2714.3,2713.6,3.5]
[1646805968984,0.07547899,2714.3,2713.2,3.8676]
[1646805969188,0.92141,2714.1,2713.5,1.45343997]
[1646805969388,0.92141,2714.1,2713.8,1.14533939]
[1646805972131,0.9214,2714.3,2713.9,3.5]
[1646805972830,0.9214,2714.3,2713.8,1.14533939]
[1646805973934,0.9214,2714.3,2713.8,4.64533939]
[1646805974336,0.9214,2714.3,2713.8,1.14533939]
[1646805974537,0.9214,2714.3,2713.8,4.64533939]
[1646805974741,0.9214,2714.3,2713.8,1.14533939]
[1646805974941,0.9214,2714.3,2713.7,0.9213892]
[1646805975144,0.9214,2714.3,2713.8,1.46475865]
[1646805975980,0.07547935,2714.2,2713.7,0.9213892]
[1646805976281,0.92159,2713.9,2713.2,5.3429154]
[1646805976483,0.92159,2713.9,2713.3,1.46522731]
[1646805977181,0.92159,2713.9,2713.3,2.38668111]
[1646805977380,0.92158,2713.8,2713.7,1.03283126]
[1646805977581,0.92138,2714.3,2713.7,1.03283126]
[1646805977783,0.07548088,2714.2,2713.7,1.03283126]
[1646805978581,0.07548088,2714.2,2713.8,0.92134]
[1646805978780,0.07548088,2714.2,2713.8,4.42134]
[1646805979443,4.6769318,2714.9,2713.8,4.42134]
[1646805979444,0.92124,2714.7,2713.9,1.46505984]
[1646805979641,0.07547481,2714.6,2713.8,4.42134]
[1646805980043,0.07547481,2714.6,2713.9,1.46534518]
[1646805980240,0.07547481,2714.6,2713.9,3.30778408]
[1646805980443,0.07547481,2714.6,2713.9,1.8424389]
[1646805981142,0.07547481,2714.6,2714.0,1.46538824]
[1646805981340,0.07547481,2714.6,2713.9,1.8424389]
[1646805982142,0.07547481,2714.6,2714.3,0.98085915]
[1646805982440,0.07547481,2714.6,2713.9,1.8424389]
[1646805982640,0.07547481,2714.6,2714.0,1.46703108]
[1646805982880,0.07547481,2714.6,2713.9,1.8424389]
[1646805983686,1.91810481,2714.6,2713.9,1.8424389]
[1646805983886,0.07547481,2714.5,2714.0,0.8837523]
[1646805984491,0.92135,2714.4,2713.8,0.921217]
[1646805984691,1.91831481,2714.3,2713.7,6.0059]
[1646805984890,0.07547481,2714.2,2713.7,6.0059]
[1646805985288,0.07547481,2714.2,2713.5,2.8669]
[1646805985489,0.07547481,2714.2,2713.7,1.06180282]
[1646805985691,0.07547481,2714.2,2713.5,2.8669]
[1646805985888,0.07547481,2714.2,2713.6,1.47208928]
[1646805986090,0.92151,2714.1,2713.4,4.4544]
[1646805986288,0.9215,2713.9,2713.5,1.46896228]
[1646805986537,0.9215,2713.9,2713.6,1.46896228]
[1646805986731,0.9215,2713.9,2713.7,1.46896228]
[1646805987931,0.92151,2714.1,2713.9,0.68877239]
[1646805990788,0.92149,2714.3,2714.0,3.5]
[1646805990989,0.92119,2714.7,2714.1,1.45165168]
[1646805991187,0.07547314,2714.6,2714.1,1.45165168]
[1646805991387,0.07547314,2714.6,2714.2,1.45165168]
[1646805991585,0.07547314,2714.6,2713.9,0.68877239]
[1646805991786,0.07547314,2714.6,2714.0,1.45152764]
[1646805991986,0.07547314,2714.6,2714.0,4.95152764]
[1646805992187,0.07547314,2714.6,2714.1,1.45152764]
[1646805992386,1.91801314,2714.6,2714.2,1.45152764]
[1646805992685,1.82595449,2714.6,2714.3,2.5]
[1646805994045,1.82595449,2714.6,2713.9,3.45242449]
[1646805994236,1.84266,2714.5,2713.9,0.68877239]
[1646805995637,1.04308201,2714.4,2713.9,0.68877239]
[1646805995838,1.84275,2714.3,2713.9,0.68877239]
[1646806012782,0.07547545,2714.2,2714.0,1.47713664]
[1646806017337,0.07547545,2714.2,2714.0,1.47590551]
[1646806021991,0.6779518,2714.4,2714.0,1.47590551]
[1646806022392,2.76601322,2714.5,2714.0,1.47590551]
[1646806025245,0.6779518,2714.4,2714.0,1.47590551]
[1646806026145,2.08806142,2714.5,2714.0,1.47590551]
[1646806026146,2.76601322,2714.5,2714.0,1.47590551]
[1646806031395,2.08806142,2714.5,2714.0,1.47590551]
[1646806032440,0.02668983,2714.1,2714.0,1.47590551]
[1646806032744,2.08806142,2714.5,2714.2,0.02637271]
[1646806037292,2.08806142,2714.5,2714.3,1.50571254]
[1646806037897,0.07547152,2714.4,2714.3,1.50571254]
[1646806038096,0.07547157,2714.4,2714.3,1.50571254]
[1646806038294,2.08806142,2714.5,2714.3,1.50571254]
[1646806040457,5.58806142,2714.5,2714.3,1.50571254]
[1646806046853,4.66671142,2714.5,2714.3,1.50571254]
[1646806047856,3.5,2714.5,2714.3,1.50571254]
[1646806048455,2.06796,2714.8,2714.3,1.50571254]
[1646806048656,4.42126,2714.8,2714.3,1.50571254]
[1646806049057,5.49037784,2714.8,2714.3,1.50571254]
[1646806049556,1.99037784,2714.8,2714.3,1.50571254]
[1646806050998,5.49037784,2714.8,2714.3,1.50571254]
[1646806054265,5.49037784,2714.8,2714.4,5.70720377]
[1646806054468,5.49037784,2714.8,2714.5,1.50571254]
[1646806054667,4.42126,2714.8,2714.5,1.50171254]
[1646806055069,0.92126,2714.8,2714.5,1.50171254]
[1646806060101,0.92126,2714.8,2714.5,0.906168]
[1646806060504,0.92126,2714.8,2714.4,5.70720377]
[1646806061304,0.92126,2714.8,2714.2,2.95921976]
[1646806063249,0.87126,2714.8,2714.2,2.95921976]
[1646806072050,2.71404,2714.8,2714.2,2.95921976]
[1646806072251,1.84278,2714.7,2714.2,2.95921976]
[1646806073102,1.09728301,2714.6,2714.2,2.95921976]
[1646806073902,1.84278,2714.7,2714.2,2.95921976]
[1646806074803,1.84278,2714.7,2714.3,1.50946009]
[1646806076404,3.71437732,2714.7,2714.3,1.50946009]
[1646806077547,1.8428,2714.6,2714.3,1.50946009]
[1646806085349,3.0601832,2714.6,2714.3,1.50946009]
[1646806086850,1.8428,2714.6,2714.3,1.50946009]
[1646806094551,0.92133,2714.6,2714.3,1.50946009]
[1646806100350,0.92133,2714.6,2714.3,1.50829621]
[1646806102152,0.92133,2714.6,2714.2,0.69002417]
[1646806102456,1.84181829,2714.7,2714.6,0.68862346]
[1646806102653,0.92119,2715.0,2714.6,0.68862346]
[1646806102911,3.5,2715.0,2714.6,0.68862346]
[1646806103407,0.00864391,2715.3,2714.7,5.05926349]
[1646806103605,0.00864391,2715.3,2714.8,1.03125146]
[1646806103805,0.92091,2715.7,2715.2,1.03125146]
[1646806104005,0.92091,2715.7,2715.3,4.15873309]
[1646806104207,1.10874823,2716.4,2715.3,3.5]
[1646806104208,0.00096,2716.2,2715.3,3.5]
[1646806104410,1.10874823,2716.4,2715.4,0.3676]
[1646806104607,0.91440893,2716.3,2715.5,4.52246042]
[1646806104809,0.92067,2716.1,2715.5,3.5]
[1646806105011,0.92067,2716.1,2715.2,0.66365146]
[1646806105208,0.92067,2716.1,2715.1,3.5]
[1646806105808,0.92067,2716.1,2715.4,1.0291396]
[1646806106009,0.92093,2715.9,2715.4,1.0291396]
[1646806106208,0.9209,2715.7,2715.4,1.0291396]
[1646806106648,0.9209,2715.7,2715.2,1.8416184]
[1646806107947,0.9209,2715.7,2715.3,0.86933269]
[1646806108147,0.9209,2715.7,2715.2,1.8416184]
[1646806108347,0.9209,2715.7,2715.0,2.413835]
[1646806108549,1.84191,2715.7,2715.1,0.1841]
[1646806108947,1.84191,2715.7,2714.9,4.869835]
[1646806109152,1.84191,2715.7,2714.9,2.413835]
[1646806109153,1.84204,2715.6,2714.9,2.413835]
[1646806109450,0.92124,2715.2,2714.9,2.413835]
[1646806109651,2.28747,2715.2,2714.9,2.413835]
[1646806110304,2.28747,2715.2,2714.7,0.1841]
[1646806110595,2.28747,2715.2,2714.6,4.37272346]
[1646806111400,2.28747,2715.2,2714.6,0.68862346]
[1646806111596,2.28747,2715.2,2714.6,4.18862346]
[1646806111795,1.84247,2715.2,2714.6,0.68862346]
[1646806111997,1.84247,2715.2,2714.6,4.18862346]
[1646806112196,1.84247,2715.2,2714.6,4.55622346]
[1646806112197,0.92124,2715.2,2714.6,4.55622346]
[1646806112402,0.92087,2715.5,2714.6,4.55622346]
[1646806112604,0.00864509,2715.4,2714.7,0.1841]
[1646806112801,0.83744911,2715.5,2714.8,6.3676]
[1646806113001,0.83744911,2715.5,2715.0,1.14626926]
[1646806114253,0.83744911,2715.5,2715.1,3.5]
[1646806114454,0.92078,2715.7,2715.1,3.8676]
[1646806115055,0.92078,2715.7,2715.5,1.2033285]
[1646806115756,0.92078,2715.7,2715.6,3.5]
[1646806115957,0.92078,2715.7,2715.5,1.2033285]
[1646806116159,0.92062,2716.1,2715.6,3.5]
[1646806117161,0.00213999,2716.0,2715.6,3.5]
[1646806118209,0.92062,2716.1,2715.8,0.920564]
[1646806118410,0.92062,2716.1,2715.9,3.5]
[1646806119011,1.84125,2716.1,2715.9,3.5]
[1646806119216,1.84125,2716.1,2715.8,0.920564]
[1646806119416,1.84125,2716.1,2715.7,5.3411279]
[1646806119618,1.84144,2716.0,2715.7,5.3411279]
[1646806120116,1.7485893,2716.0,2715.7,5.3411279]
[1646806120320,1.7485893,2716.0,2715.8,1.50873934]
[1646806120815,1.75072929,2716.0,2715.8,1.50873934]
[1646806121015,1.75072929,2716.0,2715.9,3.5]
[1646806121215,1.75072929,2716.0,2715.7,1.8411279]
[1646806121415,1.75072929,2716.0,2715.8,5.00875795]
[1646806121644,1.75072929,2716.0,2715.8,3.5]
[1646806121845,1.7485893,2716.0,2715.7,1.8411279]
[1646806122047,1.75072929,2716.0,2715.8,5.00877056]
[1646806122245,1.75072929,2716.0,2715.8,3.5]
[1646806122648,0.14136986,2716.0,2715.8,3.5]
[1646806122850,0.14136986,2716.0,2715.9,1.50872815]
[1646806123049,1.84125,2716.1,2715.9,5.00872815]
[1646806123050,0.92062,2716.1,2715.9,5.00872815]
[1646806123251,0.00855866,2716.4,2716.0,5.00872815]
[1646806123551,0.00855866,2716.4,2716.1,1.50872815]
[1646806123947,0.00855866,2716.4,2716.2,3.5]
[1646806124152,1.02823436,2717.0,2716.3,21.90008423]
[1646806124153,0.00096,2717.0,2716.3,21.90008423]
[1646806124365,0.00096,2717.3,2716.4,5.00834188]
[1646806124553,0.00260472,2716.8,2716.5,1.50834188]
[1646806124952,0.00260472,2716.8,2716.6,3.5]
[1646806125152,0.00260472,2716.8,2716.4,1.5418]
[1646806125153,0.92301472,2716.8,2716.4,3.5]
[1646806125407,0.92041,2716.8,2716.5,1.5082651]
[1646806125597,0.92041,2716.8,2716.0,3.7372]
[1646806125797,0.92041,2716.8,2716.1,1.50841928]
[1646806125997,0.92041,2716.8,2715.7,4.7499]
[1646806126199,0.92041,2716.8,2715.9,1.1277372]
[1646806126398,1.22041,2716.8,2716.0,1.50842072]
[1646806127201,0.9206,2716.7,2716.0,1.50842072]
[1646806127499,0.92069,2716.5,2716.0,1.50842072]
[1646806127699,0.92069,2716.5,2715.8,1.8411498]
[1646806127901,0.92069,2716.5,2715.9,1.50851763]
[1646806128100,1.12458383,2716.3,2715.9,1.50851763]
[1646806128301,0.92062,2716.2,2715.9,1.50851763]
[1646806128706,0.92062,2716.2,2715.6,4.1458]
[1646806128908,0.92062,2716.2,2715.3,9.2475]
[1646806129151,0.92062,2716.2,2715.4,1.5086995]
[1646806129354,0.92062,2716.2,2715.5,1.51526899]
[1646806129553,0.92062,2716.2,2715.6,1.5086995]
[1646806130054,0.92092,2716.0,2715.6,1.5086995]
[1646806130556,2.76271,2716.0,2715.5,0.00656945]
[1646806131558,2.76271,2716.0,2715.2,1.05906967]
[1646806131754,2.76271,2716.0,2715.5,0.00656942]
[1646806131955,1.05643205,2715.9,2715.5,0.00656942]
[1646806132554,1.05643205,2715.9,2715.2,1.05906967]
[1646806132799,1.05643205,2715.9,2715.3,1.50880253]
[1646806132998,1.05643205,2715.9,2715.5,0.00656941]
[1646806133797,1.05643205,2715.9,2714.9,2.2841]
[1646806133997,0.92103,2715.5,2715.0,1.50882383]
[1646806134200,0.92103,2715.5,2715.1,1.50882383]
[1646806134400,0.92103,2715.5,2715.2,1.50882383]
[1646806134601,0.92103,2715.5,2715.3,1.50882383]
[1646806134801,0.92103,2715.5,2715.4,1.50882383]
[1646806135001,0.92103,2715.5,2714.8,4.6841]
[1646806135202,0.92103,2715.5,2715.3,0.00635315]
[1646806136202,0.92102,2715.4,2714.8,3.6841]
[1646806136402,0.92102,2715.4,2714.9,1.50887092]
[1646806136649,0.92102,2715.4,2715.3,0.00635315]
[1646806137050,0.92102,2715.4,2715.3,1.51522407]
[1646806137450,0.92102,2715.4,2714.6,5.76838836]
[1646806137451,1.22102,2715.4,2714.6,5.76838836]
[1646806137649,0.92116,2715.2,2714.7,1.50900307]
[1646806137849,1.84258,2715.1,2714.7,1.50900307]
[1646806138749,1.15822588,2715.0,2714.7,1.50900307]
[1646806139151,2.07950588,2715.0,2714.7,1.50900307]
[1646806139352,0.92128,2714.9,2714.7,1.50900307]
[1646806141310,0.92128,2714.9,2714.7,1.51544632]
[1646806141508,0.92128,2714.9,2714.8,1.50900307]
[1646806142509,3.92206588,2715.0,2714.8,1.50900307]
[1646806142510,2.07538185,2715.0,2714.8,1.50900307]
[1646806142711,2.07538185,2715.0,2714.9,1.50900307]
[1646806142909,0.23282185,2715.0,2714.9,1.50900307]
[1646806143111,0.23282185,2715.0,2714.8,1.50900307]
[1646806143414,0.23282185,2715.0,2714.9,1.50900307]
[1646806146156,0.23282185,2715.0,2714.8,0.00629684]
[1646806146354,0.23282185,2715.0,2714.9,1.50900307]
[1646806149905,0.5,2715.1,2714.9,1.50900307]
[1646806150909,2.34222,2715.1,2715.0,1.50900307]
[1646806153050,0.87131804,2715.1,2715.0,5.00900307]
[1646806153252,0.5,2715.1,2715.0,5.00900307]
[1646806153652,0.92086,2715.6,2715.0,5.00900307]
[1646806153653,0.92086,2715.6,2715.0,1.50900307]
[1646806153854,0.92086,2715.6,2715.0,5.00900307]
[1646806154051,2.10064967,2715.6,2715.1,1.50900307]
[1646806154459,2.10064967,2715.6,2715.2,1.50900307]
[1646806154758,1.84205,2715.5,2715.3,1.50900307]
[1646806155600,1.84205,2715.5,2715.4,1.50900307]
[1646806155801,1.84205,2715.5,2715.3,0.00609016]
[1646806156000,1.84205,2715.5,2715.4,1.50900307]
[1646806156801,2.14205,2715.5,2715.4,1.50900307]
[1646806157202,2.14205,2715.5,2715.3,0.0060857]
[1646806157401,0.3,2715.5,2715.4,1.50903739]
[1646806157601,0.3,2715.5,2715.4,1.50902763]
[1646806157901,3.32166967,2715.6,2715.4,1.50902763]
[1646806158101,3.32166967,2715.6,2715.3,0.00614245]
[1646806158305,3.32166967,2715.6,2715.4,1.50898696]
[1646806159358,3.32166967,2715.6,2715.4,0.00614235]
[1646806160357,3.32166967,2715.6,2715.0,0.9209453]
[1646806160560,3.32166967,2715.6,2715.4,0.00614073]
[1646806161562,3.32166967,2715.6,2714.7,2.0259721]
[1646806161760,3.32166967,2715.6,2715.4,0.00614073]
[1646806162661,3.32166967,2715.6,2714.7,1.8418721]
[1646806162902,3.32166967,2715.6,2714.8,1.50914232]
[1646806163102,3.32166967,2715.6,2715.4,0.00614073]
[1646806163902,3.32166967,2715.6,2714.7,1.8418721]
[1646806164109,3.32166967,2715.6,2714.8,1.50916147]
[1646806167753,3.32166967,2715.6,2715.1,0.00656075]
[1646806167954,3.32166967,2715.6,2715.2,1.50916147]
[1646806168956,1.84241,2715.4,2715.3,0.00656031]
[1646806169559,3.68478,2715.2,2714.6,2.09172346]
[1646806169758,3.68478,2715.2,2714.7,1.50922996]
[1646806170159,1.12885575,2714.9,2714.7,1.50922996]
[1646806170403,3.98478,2715.2,2714.7,1.50922996]
[1646806170404,4.89026708,2715.2,2714.7,1.50922996]
[1646806171004,0.9212,2715.1,2714.7,1.50922996]
[1646806171206,3.68497,2715.1,2714.7,1.50922996]
[1646806171407,4.12997,2715.1,2714.7,1.50922996]
[1646806172705,4.12997,2715.1,2714.8,0.0065614]
[1646806173004,4.12997,2715.1,2714.9,1.50922996]
[1646806173806,4.12997,2715.1,2715.0,1.50922996]
[1646806174061,4.67847827,2715.1,2714.9,0.0064113]
[1646806174752,4.67847827,2715.1,2714.6,0.68862346]
[1646806176455,1.07445119,2714.7,2714.6,0.68862346]
[1646806183759,4.57445119,2714.7,2714.6,0.68862346]
[1646806183960,5.01945119,2714.7,2714.6,0.68862346]
[1646806184365,5.01945119,2714.7,2714.0,0.84775146]
[1646806184562,0.92149,2714.4,2714.0,0.84775146]
[1646806185160,0.92149,2714.4,2714.1,0.66365146]
[1646806185808,0.92149,2714.4,2714.2,0.66365146]
[1646806186209,0.92146,2714.3,2714.2,0.66365146]
[1646806188712,0.92146,2714.3,2714.1,0.66365146]
[1646806188910,0.92146,2714.3,2714.2,0.66365146]
[1646806189362,0.92146,2714.3,2714.1,0.67020429]
[1646806190161,0.92146,2714.3,2714.1,1.59145759]
[1646806190360,0.92149,2714.4,2714.1,1.58490476]
[1646806190361,0.23284939,2714.4,2714.1,1.58490476]
[1646806190763,0.23284939,2714.4,2714.1,1.59145759]
[1646806191160,0.92146,2714.3,2714.1,1.59145759]
[1646806191562,0.92146,2714.3,2714.1,1.58490476]
[1646806191963,0.92146,2714.3,2714.1,1.59145748]
[1646806192811,0.92146,2714.3,2714.1,1.58490476]
[1646806193012,0.92146,2714.3,2714.1,1.59145759]
[1646806193213,0.92146,2714.3,2714.1,0.67020429]
[1646806193414,0.92146,2714.3,2714.1,0.00655283]
[1646806194014,0.92146,2714.3,2714.2,1.47801339]
[1646806194417,0.92146,2714.3,2714.1,1.48436963]
[1646806194620,0.92146,2714.3,2714.2,1.47801339]
[1646806195621,0.92146,2714.3,2714.1,1.47801339]
[1646806198153,0.92146,2714.3,2714.1,1.48456123]
[1646806198452,0.92146,2714.3,2714.2,1.47801339]
[1646806199656,0.92146,2714.3,2714.2,1.49376627]
[1646806203318,0.23284939,2714.4,2714.2,1.49376627]
[1646806203517,0.23284939,2714.4,2714.3,1.47801339]
[1646806203720,1.84236,2714.7,2714.3,1.47801339]
[1646806205157,1.84236,2714.7,2714.4,1.11848188]
[1646806205358,1.84236,2714.7,2714.5,1.47801339]
[1646806205958,1.84236,2714.7,2714.6,1.47801339]
[1646806206559,0.92116,2714.7,2714.6,1.47801339]
[1646806206759,1.84238,2714.7,2714.6,1.47801339]
[1646806206958,1.84238,2714.7,2714.4,0.00642445]
[1646806207161,1.84238,2714.7,2714.5,1.47801339]
[1646806207358,1.84238,2714.7,2714.6,1.47801339]
[1646806208005,0.92116,2714.7,2714.6,1.47801339]
[1646806208407,0.92116,2714.7,2714.4,0.0063304]
[1646806208605,0.92116,2714.7,2714.5,1.47801339]
[1646806208806,0.92116,2714.7,2714.6,1.47801339]
[1646806209009,0.92116,2714.7,2714.4,0.00620953]
[1646806209207,0.92116,2714.7,2714.5,1.47801339]
[1646806209407,0.92116,2714.7,2714.6,1.47801339]
[1646806209810,1.84253,2714.6,2714.2,0.89024929]
[1646806210009,1.84253,2714.6,2714.4,0.00620952]